fUSD/lending_fUSD_20250512
["ID","MTS","AMOUNT","RATE_DAILY","PERIOD"]
[360857417,1747077052805,-400.0,0.00013698,2]
[360857418,1747077052814,-929.75,0.00013698,2]
[360857419,1747077052824,-765.93,0.00013698,2]
[360857420,1747077052834,-400.0,0.00013698,2]
[360857421,1747077052844,-400.0,0.00013698,2]
[360857422,1747077052853,-400.0,0.00013698,2]
[360857423,1747077052862,-400.0,0.00013698,2]
[360857424,1747077052872,-247.29195361,0.00013698,2]
[360857425,1747077053150,-400.0,0.00013698,2]
[360857426,1747077053221,-400.0,0.00013698,2]
[360857427,1747077053255,-400.0,0.00013698,2]
[360857428,1747077053269,-400.0,0.00013698,2]
[360857429,1747077053279,-474.14,0.00013698,2]
[360857430,1747077053289,-400.0,0.00013698,2]
[360857431,1747077053299,-400.0,0.00013698,2]
[360857432,1747077053309,-400.0,0.00013698,2]
[360857433,1747077053320,-489.7,0.00013698,2]
[360857434,1747077053330,-984.28,0.00013698,2]
[360857435,1747077053340,-400.0,0.00013698,2]
[360857436,1747077053350,-400.0,0.00013698,2]
[360857437,1747077053361,-400.0,0.00013698,2]
[360857438,1747077053371,-400.0,0.00013698,2]
[360857439,1747077053381,-269.986496,0.00013698,2]
[360857440,1747077053391,-400.0,0.00013698,2]
[360857441,1747077053401,-984.65,0.00013698,2]
[360857442,1747077053411,-400.0,0.00013698,2]
[360857443,1747077053422,-400.0,0.00013698,2]
[360857444,1747077053431,-500.0,0.00013698,2]
[360857445,1747077053440,-400.0,0.00013698,2]
[360857446,1747077053449,-400.0,0.00013698,2]
[360857447,1747077053459,-400.0,0.00013698,2]
[360857448,1747077053469,-241.81653544,0.00013698,2]
[360857449,1747077053485,-400.0,0.00013698,2]
[360857450,1747077053495,-400.0,0.00013698,2]
[360857451,1747077053505,-500.93,0.00013698,2]
[360857452,1747077053516,-242.71427203,0.00013698,2]
[360857453,1747077053526,-525.1,0.00013698,2]
[360857454,1747077053537,-400.0,0.00013698,2]
[360857455,1747077053547,-400.0,0.00013698,2]
[360857456,1747077053557,-2006.23,0.00013698,2]
[360857457,1747077053567,-608.32,0.00013698,2]
[360857458,1747077053577,-400.0,0.00013698,2]
[360857459,1747077053587,-534.74,0.00013698,2]
[360857460,1747077053597,-400.0,0.00013698,2]
[360857461,1747077053607,-400.4,0.00013698,2]
[360857462,1747077053616,-400.0,0.00013698,2]
[360857463,1747077053626,-400.0,0.00013698,2]
[360857464,1747077053636,-400.0,0.00013698,2]
[360857465,1747077053646,-400.0,0.00013698,2]
[360857466,1747077053656,-400.0,0.00013698,2]
[360857467,1747077053666,-400.0,0.00013698,2]
[360857468,1747077053676,-400.0,0.00013698,2]
[360857469,1747077053686,-400.0,0.00013698,2]
[360857470,1747077053695,-400.0,0.00013698,2]
[360857471,1747077053705,-400.0,0.00013698,2]
[360857472,1747077053714,-400.0,0.00013698,2]
[360857473,1747077053726,-400.0,0.00013698,2]
[360857474,1747077053737,-437.61,0.00013698,2]
[360857475,1747077053747,-390.724148,0.00013698,2]
[360857476,1747077053758,-522.99,0.00013698,2]
[360857477,1747077053768,-400.0,0.00013698,2]
[360857478,1747077053778,-526.94,0.00013698,2]
[360857479,1747077053788,-400.0,0.00013698,2]
[360857480,1747077053798,-400.0,0.00013698,2]
[360857481,1747077053808,-400.0,0.00013698,2]
[360857482,1747077053818,-1219.53,0.00013698,2]
[360857483,1747077053827,-233.31710992,0.00013698,2]
[360857484,1747077053837,-400.0,0.00013698,2]
[360857485,1747077053847,-400.0,0.00013698,2]
[360857486,1747077053856,-948.62,0.00013698,2]
[360857487,1747077053866,-450.0,0.00013698,2]
[360857488,1747077053875,-400.0,0.00013698,2]
[360857489,1747077053885,-400.0,0.00013698,2]
[360857490,1747077053894,-400.0,0.00013698,2]
[360857491,1747077053904,-151.0,0.00013699,2]
[360857492,1747077053913,-200.0,0.00013699,2]
[360857493,1747077053923,-391.88,0.00013699,2]
[360857494,1747077053931,-150.0,0.00013699,2]
[360857495,1747077053942,-500.0,0.00013699,2]
[360857496,1747077053954,-500.0,0.00013699,2]
[360857497,1747077053964,-225.69329853,0.00013699,2]
[360857498,1747077053976,-500.0,0.00013699,2]
[360857499,1747077053986,-500.0,0.00013699,2]
[360857500,1747077053995,-500.0,0.00013699,2]
[360857501,1747077054005,-500.0,0.00013699,2]
[360857502,1747077054014,-500.0,0.00013699,2]
[360857503,1747077054024,-500.0,0.00013699,2]
[360857504,1747077054034,-207.25689828,0.00013699,2]
[360857505,1747077054044,-500.0,0.00013699,2]
[360857506,1747077054054,-500.0,0.00013699,2]
[360857507,1747077054063,-500.0,0.00013699,2]
[360857508,1747077054073,-500.0,0.00013699,2]
[360857509,1747077054083,-500.0,0.00013699,2]
[360857510,1747077054093,-500.0,0.00013699,2]
[360857511,1747077054103,-500.0,0.00013699,2]
[360857512,1747077054112,-500.0,0.00013699,2]
[360857513,1747077054121,-500.0,0.00013699,2]
[360857514,1747077054130,-500.0,0.00013699,2]
[360857515,1747077054140,-500.0,0.00013699,2]
[360857516,1747077054149,-500.0,0.00013699,2]
[360857517,1747077054159,-500.0,0.00013699,2]
[360857518,1747077054168,-500.0,0.00013699,2]
[360857519,1747077054178,-210.98338564,0.00013699,2]
[360857520,1747077054187,-500.0,0.00013699,2]
[360857521,1747077054196,-500.0,0.00013699,2]
[360857522,1747077054206,-500.0,0.00013699,2]
[360857523,1747077054216,-500.0,0.00013699,2]
[360857524,1747077054229,-500.0,0.00013699,2]
[360857525,1747077054239,-500.0,0.00013699,2]
[360857526,1747077054249,-500.0,0.00013699,2]
[360857527,1747077054258,-500.0,0.00013699,2]
[360857528,1747077054267,-500.0,0.00013699,2]
[360857529,1747077054277,-500.0,0.00013699,2]
[360857530,1747077054286,-500.0,0.00013699,2]
[360857531,1747077054295,-500.0,0.00013699,2]
[360857532,1747077054304,-1656.39,0.000137,2]
[360857533,1747077054314,-162.56168853,0.00013708,2]
[360857534,1747077054323,-218.66217265,0.00013708,2]
[360857535,1747077054332,-1000.0,0.00013712,2]
[360857536,1747077054342,-469.0,0.0001372,2]
[360857537,1747077054352,-3965.91638578,0.00013728,2]
[360857538,1747077054361,-523.99659686,0.00013729,2]
[360857539,1747077054370,-450.0,0.00013729,2]
[360857540,1747077054380,-450.0,0.00013729,2]
[360857541,1747077054389,-159.25681685,0.00013729,2]
[360857542,1747077054399,-450.0,0.00013729,2]
[360857543,1747077054408,-459.60157457,0.00013729,2]
[360857544,1747077054419,-450.0,0.00013729,2]
[360857545,1747077054428,-400.0,0.00013729,2]
[360857546,1747077054438,-450.0,0.00013729,2]
[360857547,1747077054448,-450.0,0.00013729,2]
[360857548,1747077054458,-450.0,0.00013729,2]
[360857549,1747077054467,-450.0,0.00013729,2]
[360857550,1747077054479,-450.0,0.00013729,2]
[360857551,1747077054489,-541.4667408,0.00013729,2]
[360857552,1747077054499,-151.0,0.0001373,2]
[360857553,1747077054509,-150.0,0.00013731,2]
[360857554,1747077054519,-189.838,0.00013738,2]
[360857555,1747077054529,-191.736,0.00013738,2]
[360857556,1747077054538,-217.693,0.00013738,2]
[360857557,1747077054548,-283.997,0.00013738,2]
[360857558,1747077054558,-1376.36523764,0.00013743,2]
[360857559,1747077054568,-1601.69152811,0.00013743,2]
[360857560,1747077054578,-220.79646102,0.00013743,2]
[360857561,1747077054588,-236.01514279,0.00013743,2]
[360857562,1747077054597,-500.0,0.00013751,2]
[360857563,1747077054607,-500.0,0.00013752,2]
[360857564,1747077054616,-500.0,0.00013752,2]
[360857565,1747077054625,-151.0,0.00013753,2]
[360857566,1747077054634,-151.0,0.00013753,2]
[360857567,1747077054643,-151.0,0.00013753,2]
[360857568,1747077054653,-151.0,0.00013753,2]
[360857569,1747077054662,-151.0,0.00013753,2]
[360857570,1747077054671,-151.0,0.00013753,2]
[360857571,1747077054681,-308.84,0.00013753,2]
[360857572,1747077054690,-400.0,0.00013753,2]
[360857573,1747077054700,-400.0,0.00013753,2]
[360857574,1747077054710,-450.0,0.00013753,2]
[360857575,1747077054720,-450.0,0.00013753,2]
[360857576,1747077054731,-154.82236902,0.00013753,2]
[360857577,1747077054740,-400.0,0.00013753,2]
[360857578,1747077054750,-320.06108374,0.00013753,2]
[360857579,1747077054759,-176.39503761,0.00013753,2]
[360857580,1747077054769,-157.30530073,0.00013753,2]
[360857581,1747077054778,-457.78,0.00013753,2]
[360857582,1747077054787,-220.2,0.00013753,2]
[360857583,1747077054796,-160.62217387,0.00013753,2]
[360857584,1747077054805,-516.8,0.00013753,2]
[360857585,1747077054815,-400.0,0.00013753,2]
[360857586,1747077054826,-447.5,0.00013753,2]
[360857587,1747077054838,-400.0,0.00013753,2]
[360857588,1747077054847,-152.23043726,0.00013753,2]
[360857589,1747077054857,-498.14,0.00013753,2]
[360857590,1747077054866,-400.0,0.00013753,2]
[360857591,1747077054876,-331.39121095,0.00013753,2]
[360857592,1747077054885,-450.0,0.00013753,2]
[360857593,1747077054895,-185.56974922,0.00013753,2]
[360857594,1747077054904,-450.0,0.00013753,2]
[360857595,1747077054913,-450.0,0.00013753,2]
[360857596,1747077054923,-272.25780477,0.00013753,2]
[360857597,1747077054933,-519.86,0.00013753,2]
[360857598,1747077054945,-400.0,0.00013753,2]
[360857599,1747077054956,-546.69837946,0.00013753,2]
[360857600,1747077054966,-400.0,0.00013753,2]
[360857601,1747077054975,-199.51,0.00013753,2]
[360857602,1747077054985,-511.45369029,0.00013753,2]
[360857603,1747077054994,-400.0,0.00013753,2]
[360857604,1747077055005,-450.0,0.00013753,2]
[360857605,1747077055014,-528.52538859,0.00013753,2]
[360857606,1747077055026,-400.0,0.00013753,2]
[360857607,1747077055035,-241.38,0.00013753,2]
[360857608,1747077055045,-400.0,0.00013753,2]
[360857609,1747077055055,-450.0,0.00013753,2]
[360857610,1747077055064,-192.90751446,0.00013753,2]
[360857611,1747077055073,-450.0,0.00013753,2]
[360857612,1747077055082,-400.0,0.00013753,2]
[360857613,1747077055092,-400.0,0.00013753,2]
[360857614,1747077055102,-400.0,0.00013753,2]
[360857615,1747077055111,-400.0,0.00013753,2]
[360857616,1747077055120,-332.93,0.00013753,2]
[360857617,1747077055130,-400.0,0.00013753,2]
[360857618,1747077055139,-513.15031539,0.00013753,2]
[360857619,1747077055148,-400.0,0.00013753,2]
[360857620,1747077055158,-400.0,0.00013753,2]
[360857621,1747077055167,-150.0,0.00013753,2]
[360857622,1747077055177,-417.43,0.00013753,2]
[360857623,1747077055186,-400.0,0.00013753,2]
[360857624,1747077055195,-400.0,0.00013753,2]
[360857625,1747077055204,-450.0,0.00013753,2]
[360857626,1747077055213,-166.67284615,0.00013753,2]
[360857627,1747077055226,-150.0,0.00013753,2]
[360857628,1747077055236,-450.0,0.00013753,2]
[360857629,1747077055245,-511.83148712,0.00013753,2]
[360857630,1747077055254,-400.0,0.00013753,2]
[360857631,1747077055263,-400.0,0.00013753,2]
[360857632,1747077055273,-162.88,0.00013753,2]
[360857633,1747077055282,-799.89,0.00013753,2]
[360857634,1747077055292,-450.0,0.00013753,2]
[360857635,1747077055301,-373.00848097,0.00013753,2]
[360857636,1747077055311,-400.0,0.00013753,2]
[360857637,1747077055321,-449.96,0.00013753,2]
[360857638,1747077055330,-340.42,0.00013753,2]
[360857639,1747077055339,-566.96,0.00013753,2]
[360857640,1747077055348,-400.0,0.00013753,2]
[360857641,1747077055358,-400.0,0.00013753,2]
[360857642,1747077055367,-450.0,0.00013753,2]
[360857643,1747077055377,-450.0,0.00013753,2]
[360857644,1747077055387,-219.24,0.00013753,2]
[360857645,1747077055396,-400.0,0.00013753,2]
[360857646,1747077055406,-400.0,0.00013753,2]
[360857647,1747077055416,-161.29932098,0.00013753,2]
[360857648,1747077055425,-400.0,0.00013753,2]
[360857649,1747077055435,-400.0,0.00013753,2]
[360857650,1747077055444,-863.84,0.00013753,2]
[360857651,1747077055453,-450.0,0.00013753,2]
[360857652,1747077055462,-400.0,0.00013753,2]
[360857653,1747077055471,-400.0,0.00013753,2]
[360857654,1747077055483,-450.0,0.00013753,2]
[360857655,1747077055492,-400.0,0.00013753,2]
[360857656,1747077055502,-307.16,0.00013753,2]
[360857657,1747077055512,-400.0,0.00013753,2]
[360857658,1747077055521,-400.0,0.00013753,2]
[360857659,1747077055531,-400.0,0.00013753,2]
[360857660,1747077055540,-400.0,0.00013753,2]
[360857661,1747077055549,-400.0,0.00013753,2]
[360857662,1747077055559,-518.59,0.00013753,2]
[360857663,1747077055568,-167.0461367,0.00013753,2]
[360857664,1747077055578,-510.72,0.00013753,2]
[360857665,1747077055587,-500.0,0.00013753,2]
[360857666,1747077055597,-400.0,0.00013753,2]
[360857667,1747077055606,-400.0,0.00013753,2]
[360857668,1747077055615,-245.63,0.00013753,2]
[360857669,1747077055624,-1527.89,0.00013753,2]
[360857670,1747077055633,-400.0,0.00013753,2]
[360857671,1747077055643,-500.0,0.00013753,2]
[360857672,1747077055652,-400.0,0.00013753,2]
[360857673,1747077055662,-400.0,0.00013753,2]
[360857674,1747077055671,-500.0,0.00013753,2]
[360857675,1747077055680,-450.0,0.00013753,2]
[360857676,1747077055690,-400.0,0.00013753,2]
[360857677,1747077055699,-400.15,0.00013753,2]
[360857678,1747077055709,-163.05767693,0.00013753,2]
[360857679,1747077055719,-913.97,0.00013753,2]
[360857680,1747077055731,-465.95,0.00013753,2]
[360857681,1747077055741,-178.54,0.00013753,2]
[360857682,1747077055751,-150.22492481,0.00013753,2]
[360857683,1747077055760,-500.0,0.00013753,2]
[360857684,1747077055769,-400.0,0.00013753,2]
[360857685,1747077055778,-400.0,0.00013753,2]
[360857686,1747077055787,-400.0,0.00013753,2]
[360857687,1747077055796,-400.0,0.00013753,2]
[360857688,1747077055806,-496.59,0.00013753,2]
[360857689,1747077055815,-500.0,0.00013753,2]
[360857690,1747077055824,-400.0,0.00013753,2]
[360857691,1747077055834,-400.0,0.00013753,2]
[360857692,1747077055843,-500.0,0.00013753,2]
[360857693,1747077055852,-400.0,0.00013753,2]
[360857694,1747077055861,-177.74191078,0.00013753,2]
[360857695,1747077055871,-450.0,0.00013753,2]
[360857696,1747077055880,-446.75,0.00013753,2]
[360857697,1747077055889,-400.0,0.00013753,2]
[360857698,1747077055898,-400.0,0.00013753,2]
[360857699,1747077055907,-170.80364387,0.00013753,2]
[360857700,1747077055916,-197.40313549,0.00013753,2]
[360857701,1747077055926,-500.0,0.00013753,2]
[360857702,1747077055935,-400.0,0.00013753,2]
[360857703,1747077055945,-400.0,0.00013753,2]
[360857704,1747077055956,-168.85,0.00013753,2]
[360857705,1747077055966,-400.0,0.00013753,2]
[360857706,1747077055977,-400.0,0.00013753,2]
[360857707,1747077055986,-400.0,0.00013753,2]
[360857708,1747077055999,-450.0,0.00013753,2]
[360857709,1747077056009,-500.0,0.00013753,2]
[360857710,1747077056019,-400.0,0.00013753,2]
[360857711,1747077056030,-400.0,0.00013753,2]
[360857712,1747077056039,-500.0,0.00013753,2]
[360857713,1747077056049,-500.0,0.00013753,2]
[360857714,1747077056063,-192.12186258,0.00013753,2]
[360857715,1747077056072,-400.0,0.00013753,2]
[360857716,1747077056081,-400.0,0.00013753,2]
[360857717,1747077056090,-180.96659774,0.00013753,2]
[360857718,1747077056099,-400.0,0.00013753,2]
[360857719,1747077056109,-500.0,0.00013753,2]
[360857720,1747077056119,-400.0,0.00013753,2]
[360857721,1747077056129,-400.0,0.00013753,2]
[360857722,1747077056138,-500.0,0.00013753,2]
[360857723,1747077056148,-400.0,0.00013753,2]
[360857724,1747077056157,-528.83,0.00013753,2]
[360857725,1747077056167,-525.15,0.00013753,2]
[360857726,1747077056176,-400.0,0.00013753,2]
[360857727,1747077056185,-400.0,0.00013753,2]
[360857728,1747077056195,-500.0,0.00013753,2]
[360857729,1747077056346,-179.78326704,0.00013753,2]
[360857730,1747077056356,-316.74379743,0.00013753,2]
[360857731,1747077056367,-400.0,0.00013753,2]
[360857732,1747077056377,-240.77,0.00013753,2]
[360857733,1747077056387,-400.0,0.00013753,2]
[360857734,1747077056396,-161.39291497,0.00013753,2]
[360857735,1747077056405,-400.0,0.00013753,2]
[360857736,1747077056414,-178.33673299,0.00013753,2]
[360857737,1747077056424,-500.0,0.00013753,2]
[360857738,1747077056434,-209.19931187,0.00013753,2]
[360857739,1747077056444,-400.0,0.00013753,2]
[360857740,1747077056454,-400.0,0.00013753,2]
[360857741,1747077056463,-500.0,0.00013753,2]
[360857742,1747077056475,-500.0,0.00013753,2]
[360857743,1747077056486,-306.06,0.00013753,2]
[360857744,1747077056495,-259.09170947,0.00013753,2]
[360857745,1747077056506,-400.0,0.00013753,2]
[360857746,1747077056516,-400.0,0.00013753,2]
[360857747,1747077056526,-400.0,0.00013753,2]
[360857748,1747077056537,-500.0,0.00013753,2]
[360857749,1747077056547,-421.58106458,0.00013753,2]
[360857750,1747077056557,-400.0,0.00013753,2]
[360857751,1747077056566,-500.0,0.00013753,2]
[360857752,1747077056576,-450.0,0.00013753,2]
[360857753,1747077056585,-161.33,0.00013753,2]
[360857754,1747077056595,-500.0,0.00013753,2]
[360857755,1747077056604,-400.0,0.00013753,2]
[360857756,1747077056613,-500.0,0.00013753,2]
[360857757,1747077056622,-500.0,0.00013753,2]
[360857758,1747077056632,-450.0,0.00013753,2]
[360857759,1747077056641,-340.64,0.00013753,2]
[360857760,1747077056651,-186.32122927,0.00013753,2]
[360857761,1747077056660,-400.0,0.00013753,2]
[360857762,1747077056670,-161.83099112,0.00013753,2]
[360857763,1747077056681,-400.0,0.00013753,2]
[360857764,1747077056691,-531.38,0.00013753,2]
[360857765,1747077056702,-500.0,0.00013753,2]
[360857766,1747077056711,-400.0,0.00013753,2]
[360857767,1747077056720,-500.0,0.00013753,2]
[360857768,1747077056731,-400.0,0.00013753,2]
[360857769,1747077056740,-535.9,0.00013753,2]
[360857770,1747077056750,-400.0,0.00013753,2]
[360857771,1747077056759,-210.25056691,0.00013753,2]
[360857772,1747077056769,-174.67190794,0.00013753,2]
[360857773,1747077056779,-500.0,0.00013753,2]
[360857774,1747077056788,-388.46,0.00013753,2]
[360857775,1747077056797,-500.0,0.00013753,2]
[360857776,1747077056806,-400.0,0.00013753,2]
[360857777,1747077056815,-411.8493704,0.00013753,2]
[360857778,1747077056825,-500.0,0.00013753,2]
[360857779,1747077056834,-450.0,0.00013753,2]
[360857780,1747077056843,-500.0,0.00013753,2]
[360857781,1747077056852,-400.0,0.00013753,2]
[360857782,1747077056862,-500.0,0.00013753,2]
[360857783,1747077056871,-400.0,0.00013753,2]
[360857784,1747077056881,-400.0,0.00013753,2]
[360857785,1747077056891,-500.0,0.00013753,2]
[360857786,1747077056900,-500.0,0.00013753,2]
[360857787,1747077056910,-450.0,0.00013753,2]
[360857788,1747077056919,-400.0,0.00013753,2]
[360857789,1747077056928,-500.0,0.00013753,2]
[360857790,1747077056938,-500.0,0.00013753,2]
[360857791,1747077056948,-400.0,0.00013753,2]
[360857792,1747077056960,-400.0,0.00013753,2]
[360857793,1747077056969,-400.0,0.00013753,2]
[360857794,1747077056979,-450.0,0.00013753,2]
[360857795,1747077056988,-400.0,0.00013753,2]
[360857796,1747077056997,-400.0,0.00013753,2]
[360857797,1747077057005,-500.0,0.00013753,2]
[360857798,1747077057015,-400.0,0.00013753,2]
[360857799,1747077057024,-400.0,0.00013753,2]
[360857800,1747077057034,-400.0,0.00013753,2]
[360857801,1747077057045,-400.0,0.00013753,2]
[360857802,1747077057054,-400.0,0.00013753,2]
[360857803,1747077057063,-463.89,0.00013753,2]
[360857804,1747077057072,-500.0,0.00013753,2]
[360857805,1747077057082,-400.0,0.00013753,2]
[360857806,1747077057091,-500.0,0.00013753,2]
[360857807,1747077057101,-500.0,0.00013753,2]
[360857808,1747077057110,-500.0,0.00013753,2]
[360857809,1747077057119,-186.73302446,0.00013753,2]
[360857810,1747077057129,-500.0,0.00013753,2]
[360857811,1747077057139,-400.0,0.00013753,2]
[360857812,1747077057148,-400.0,0.00013753,2]
[360857813,1747077057156,-500.0,0.00013753,2]
[360857814,1747077057166,-400.0,0.00013753,2]
[360857815,1747077057175,-400.0,0.00013753,2]
[360857816,1747077057185,-450.0,0.00013753,2]
[360857817,1747077057194,-400.0,0.00013753,2]
[360857818,1747077057204,-500.0,0.00013753,2]
[360857819,1747077057213,-378.78,0.00013753,2]
[360857820,1747077057224,-500.0,0.00013753,2]
[360857821,1747077057234,-400.0,0.00013753,2]
[360857822,1747077057244,-500.0,0.00013753,2]
[360857823,1747077057253,-205.5,0.00013753,2]
[360857824,1747077057263,-500.0,0.00013753,2]
[360857825,1747077057272,-492.83044891,0.00013753,2]
[360857826,1747077057282,-500.0,0.00013753,2]
[360857827,1747077057293,-400.0,0.00013753,2]
[360857828,1747077057302,-400.0,0.00013753,2]
[360857829,1747077057312,-400.0,0.00013753,2]
[360857830,1747077057321,-400.0,0.00013753,2]
[360857831,1747077057332,-463.3,0.00013753,2]
[360857832,1747077057344,-400.0,0.00013753,2]
[360857833,1747077057356,-500.0,0.00013753,2]
[360857834,1747077057365,-500.0,0.00013753,2]
[360857835,1747077057375,-352.93806929,0.00013753,2]
[360857836,1747077057384,-366.11083491,0.00013753,2]
[360857837,1747077057399,-400.0,0.00013753,2]
[360857838,1747077057409,-500.0,0.00013753,2]
[360857839,1747077057419,-450.0,0.00013753,2]
[360857840,1747077057428,-500.0,0.00013753,2]
[360857841,1747077057438,-500.0,0.00013753,2]
[360857842,1747077057447,-500.0,0.00013753,2]
[360857843,1747077057458,-400.0,0.00013753,2]
[360857844,1747077057468,-500.0,0.00013753,2]
[360857845,1747077057479,-219.65779485,0.00013753,2]
[360857846,1747077057488,-500.0,0.00013753,2]
[360857847,1747077057497,-500.0,0.00013753,2]
[360857848,1747077057507,-500.0,0.00013753,2]
[360857849,1747077057516,-500.0,0.00013753,2]
[360857850,1747077057525,-417.86,0.00013753,2]
[360857851,1747077057535,-500.0,0.00013753,2]
[360857852,1747077057544,-500.0,0.00013753,2]
[360857853,1747077057555,-500.0,0.00013753,2]
[360857854,1747077057565,-500.0,0.00013753,2]
[360857855,1747077057575,-400.0,0.00013753,2]
[360857856,1747077057585,-250.76352385,0.00013753,2]
[360857857,1747077057595,-400.0,0.00013753,2]
[360857858,1747077057606,-500.0,0.00013753,2]
[360857859,1747077057615,-400.0,0.00013753,2]
[360857860,1747077057625,-500.0,0.00013753,2]
[360857861,1747077057635,-500.0,0.00013753,2]
[360857862,1747077057645,-181.96617735,0.00013753,2]
[360857863,1747077057655,-400.0,0.00013753,2]
[360857864,1747077057665,-500.0,0.00013753,2]
[360857865,1747077057674,-400.0,0.00013753,2]
[360857866,1747077057684,-543.64,0.00013753,2]
[360857867,1747077057693,-303.98180571,0.00013753,2]
[360857868,1747077057702,-500.0,0.00013753,2]
[360857869,1747077057712,-400.0,0.00013753,2]
[360857870,1747077057721,-500.0,0.00013753,2]
[360857871,1747077057733,-400.0,0.00013753,2]
[360857872,1747077057743,-400.0,0.00013753,2]
[360857873,1747077057752,-500.0,0.00013753,2]
[360857874,1747077057762,-500.0,0.00013753,2]
[360857875,1747077057773,-500.0,0.00013753,2]
[360857876,1747077057782,-400.0,0.00013753,2]
[360857877,1747077057792,-500.0,0.00013753,2]
[360857878,1747077057801,-500.0,0.00013753,2]
[360857879,1747077057811,-500.0,0.00013753,2]
[360857880,1747077057821,-400.0,0.00013753,2]
[360857881,1747077057831,-400.0,0.00013753,2]
[360857882,1747077057840,-400.0,0.00013753,2]
[360857883,1747077057850,-400.0,0.00013753,2]
[360857884,1747077057860,-500.0,0.00013753,2]
[360857885,1747077057869,-500.0,0.00013753,2]
[360857886,1747077057879,-500.0,0.00013753,2]
[360857887,1747077057889,-400.0,0.00013753,2]
[360857888,1747077057898,-400.0,0.00013753,2]
[360857889,1747077057907,-500.0,0.00013753,2]
[360857890,1747077057916,-400.0,0.00013753,2]
[360857891,1747077057926,-400.0,0.00013753,2]
[360857892,1747077057937,-272.97,0.00013753,2]
[360857893,1747077057949,-433.71411063,0.00013753,2]
[360857894,1747077057960,-219.31386995,0.00013753,2]
[360857895,1747077057970,-231.64,0.00013753,2]
[360857896,1747077057980,-211.93196241,0.00013753,2]
[360857897,1747077057992,-400.0,0.00013753,2]
[360857898,1747077058002,-500.0,0.00013753,2]
[360857899,1747077058011,-400.0,0.00013753,2]
[360857900,1747077058022,-400.0,0.00013753,2]
[360857901,1747077058033,-400.0,0.00013753,2]
[360857902,1747077058045,-500.0,0.00013753,2]
[360857903,1747077058058,-191.35751775,0.00013753,2]
[360857904,1747077058068,-500.0,0.00013753,2]
[360857905,1747077058077,-400.0,0.00013753,2]
[360857906,1747077058087,-459.68,0.00013753,2]
[360857907,1747077058097,-500.0,0.00013753,2]
[360857908,1747077058106,-165.53550363,0.00013753,2]
[360857909,1747077058116,-500.0,0.00013753,2]
[360857910,1747077058125,-400.0,0.00013753,2]
[360857911,1747077058135,-377.41975679,0.00013753,2]
[360857912,1747077058144,-500.0,0.00013753,2]
[360857913,1747077058154,-500.0,0.00013753,2]
[360857914,1747077058164,-400.0,0.00013753,2]
[360857915,1747077058174,-500.0,0.00013753,2]
[360857916,1747077058183,-500.0,0.00013753,2]